[Event "*** MasterClass Titled Tuesday Blitz"]
[Site "Chess.com"]
[Date "2017.11.07"]
[Round "1"]
[White "Hanging_pointer"]
[Black "LaStreetCmaMaison"]
[Result "0-1"]
[WhiteElo "2324"]
[BlackElo "2586"]
[TimeControl "180+2"]
[EndTime "14:11:11 PST"]
[Termination "LaStreetCmaMaison won by checkmate"]

1. e4 {[%clk 0:02:10.5]} 1... e6 {[%clk 0:02:58.3]} 2. d4 {[%clk 0:02:11]} 2...
d5 {[%clk 0:02:57.4]} 3. Nd2 {[%clk 0:02:12.2]} 3... e5 {[%clk 0:02:57.1]} 4.
dxe5 {[%clk 0:02:11.9]} 4... dxe4 {[%clk 0:02:57.6]} 5. Nxe4 {[%clk 0:02:13.7]}
5... Qxd1+ {[%clk 0:02:58.3]} 6. Kxd1 {[%clk 0:02:15.5]} 6... Nc6 {[%clk
0:02:58.8]} 7. f4 {[%clk 0:02:15.4]} 7... Bg4+ {[%clk 0:02:53.8]} 8. Nf3 {[%clk
0:02:08.5]} 8... O-O-O+ {[%clk 0:02:53]} 9. Bd3 {[%clk 0:02:09.4]} 9... Nd4
{[%clk 0:02:11.7]} 10. Nd2 {[%clk 0:01:57.3]} 10... Ne7 {[%clk 0:02:06.6]} 11.
Rf1 {[%clk 0:01:53.7]} 11... Nd5 {[%clk 0:02:04]} 12. Nb3 {[%clk 0:01:54.7]}
12... Nxf3 {[%clk 0:02:04.1]} 13. gxf3 {[%clk 0:01:55]} 13... Bh3 {[%clk
0:02:05.1]} 14. Rg1 {[%clk 0:01:52.4]} 14... c5 {[%clk 0:01:56.1]} 15. Ke2
{[%clk 0:01:49.2]} 15... Nb4 {[%clk 0:01:49.5]} 16. Be4 {[%clk 0:01:39.2]} 16...
c4 {[%clk 0:01:45.9]} 17. Nd2 {[%clk 0:01:39.4]} 17... b5 {[%clk 0:01:39]} 18.
a4 {[%clk 0:01:36.9]} 18... f5 {[%clk 0:01:34.4]} 19. exf6 {[%clk 0:01:35.2]}
19... gxf6 {[%clk 0:01:36.3]} 20. Rg3 {[%clk 0:01:12]} 20... f5 {[%clk 0:01:28]}
21. Rxh3 {[%clk 0:01:06.9]} 21... fxe4 {[%clk 0:01:29.7]} 22. axb5 {[%clk
0:01:04.8]} 22... Nxc2 {[%clk 0:01:20.3]} 23. Rxa7 {[%clk 0:01:01]} 23... Nd4+
{[%clk 0:01:20.2]} 24. Kf1 {[%clk 0:00:21.5]} 24... e3 {[%clk 0:00:55.5]} 25.
Nxc4 {[%clk 0:00:17.8]} 25... e2+ {[%clk 0:00:55.4]} 26. Ke1 {[%clk 0:00:18.7]}
26... Bc5 {[%clk 0:00:54.5]} 27. Ra8+ {[%clk 0:00:16.8]} 27... Kc7 {[%clk
0:00:49]} 28. Rxd8 {[%clk 0:00:17.6]} 28... Kxd8 {[%clk 0:00:49.1]} 29. Be3
{[%clk 0:00:17.4]} 29... Bb4+ {[%clk 0:00:38.2]} 30. Nd2 {[%clk 0:00:17]} 30...
Re8 {[%clk 0:00:37.3]} 31. Rh5 {[%clk 0:00:04.1]} 31... Bxd2+ {[%clk 0:00:28.7]}
32. Kxd2 {[%clk 0:00:03.8]} 32... Rxe3 {[%clk 0:00:30.4]} 33. Rd5+ {[%clk
0:00:03.7]} 33... Kc7 {[%clk 0:00:31.2]} 34. Re5 {[%clk 0:00:04.9]} 34... e1=Q#
{[%clk 0:00:30.4]} 0-1

[Event "*** MasterClass Titled Tuesday Blitz"]
[Site "Chess.com"]
[Date "2017.11.07"]
[Round "1"]
[White "GeorgMeier"]
[Black "Bad4life"]
[Result "1-0"]
[WhiteElo "2668"]
[BlackElo "2395"]
[TimeControl "180+2"]
[EndTime "14:11:13 PST"]
[Termination "GeorgMeier won by checkmate"]

1. Nf3 {[%clk 0:02:55.5]} 1... Nf6 {[%clk 0:03:00.2]} 2. g3 {[%clk 0:02:49.3]}
2... g6 {[%clk 0:03:01.4]} 3. Bg2 {[%clk 0:02:50.5]} 3... Bg7 {[%clk 0:03:02.8]}
4. O-O {[%clk 0:02:52.1]} 4... O-O {[%clk 0:03:04.4]} 5. d4 {[%clk 0:02:54]}
5... d6 {[%clk 0:03:05.9]} 6. b3 {[%clk 0:02:55.4]} 6... c5 {[%clk 0:03:03.1]}
7. c4 {[%clk 0:02:24]} 7... cxd4 {[%clk 0:03:03.9]} 8. Nxd4 {[%clk 0:02:25.9]}
8... Qa5 {[%clk 0:03:00.6]} 9. Bb2 {[%clk 0:02:25.7]} 9... a6 {[%clk 0:02:58.4]}
10. Nc3 {[%clk 0:02:26.5]} 10... Qh5 {[%clk 0:02:58.8]} 11. e4 {[%clk
0:02:25.8]} 11... Bg4 {[%clk 0:02:50.4]} 12. f3 {[%clk 0:02:26.5]} 12... Bh3
{[%clk 0:02:46.5]} 13. Qd2 {[%clk 0:02:25.2]} 13... Bxg2 {[%clk 0:02:39]} 14.
Kxg2 {[%clk 0:02:27.1]} 14... Nc6 {[%clk 0:02:34.5]} 15. Nde2 {[%clk 0:02:28.2]}
15... Rad8 {[%clk 0:02:28.6]} 16. Rac1 {[%clk 0:02:27.2]} 16... Bh6 {[%clk
0:02:28.1]} 17. f4 {[%clk 0:02:27.4]} 17... e5 {[%clk 0:02:21.7]} 18. h3 {[%clk
0:02:18.6]} 18... exf4 {[%clk 0:02:09.5]} 19. Nxf4 {[%clk 0:02:19]} 19... Qa5
{[%clk 0:02:03.2]} 20. Rf2 {[%clk 0:02:06.3]} 20... Ne5 {[%clk 0:01:59]} 21.
Ncd5 {[%clk 0:02:00.4]} 21... Qxd2 {[%clk 0:01:37.2]} 22. Nxf6+ {[%clk
0:02:00.9]} 22... Kg7 {[%clk 0:01:38.8]} 23. Rxd2 {[%clk 0:02:02.8]} 23... Kxf6
{[%clk 0:01:39.1]} 24. Rcd1 {[%clk 0:02:04.4]} 24... Ke7 {[%clk 0:01:20.8]} 25.
Ba3 {[%clk 0:01:46.8]} 25... f5 {[%clk 0:00:12.9]} 26. Bxd6+ {[%clk 0:01:10.4]}
26... Rxd6 {[%clk 0:00:11]} 27. Rxd6 {[%clk 0:01:12.3]} 27... Nc6 {[%clk
0:00:11]} 28. Rd7+ {[%clk 0:00:55.8]} 28... Kf6 {[%clk 0:00:09]} 29. Nd5+ {[%clk
0:00:55]} 29... Ke5 {[%clk 0:00:05.4]} 30. Rxh7 {[%clk 0:00:56.9]} 30... Bg5
{[%clk 0:00:04.6]} 31. h4 {[%clk 0:00:57.3]} 31... Bd8 {[%clk 0:00:05.4]} 32.
exf5 {[%clk 0:00:58.4]} 32... gxf5 {[%clk 0:00:06.6]} 33. Nf4 {[%clk 0:00:58.8]}
33... Nd4 {[%clk 0:00:06.1]} 34. Rd7 {[%clk 0:00:57.7]} 34... Bb6 {[%clk
0:00:04.8]} 35. c5 {[%clk 0:00:58.7]} 35... Ba7 {[%clk 0:00:05.3]} 36. Rd5+
{[%clk 0:00:58.9]} 36... Kf6 {[%clk 0:00:06]} 37. R1xd4 {[%clk 0:01:00.8]} 37...
Re8 {[%clk 0:00:06.5]} 38. Kf3 {[%clk 0:01:01.3]} 38... Re1 {[%clk 0:00:07.1]}
39. Rd6+ {[%clk 0:01:02.4]} 39... Ke7 {[%clk 0:00:08.1]} 40. Rd7+ {[%clk
0:01:04.3]} 40... Ke8 {[%clk 0:00:08.9]} 41. Rd8+ {[%clk 0:01:05.4]} 41... Ke7
{[%clk 0:00:10.5]} 42. R4d7+ {[%clk 0:01:07.2]} 42... Kf6 {[%clk 0:00:12.1]} 43.
b4 {[%clk 0:01:07.3]} 43... a5 {[%clk 0:00:12.9]} 44. Rf8+ {[%clk 0:01:06.6]}
44... Ke5 {[%clk 0:00:13]} 45. Rd5# {[%clk 0:01:07.3]} 1-0

[Event "*** MasterClass Titled Tuesday Blitz"]
[Site "Chess.com"]
[Date "2017.11.07"]
[Round "1"]
[White "chito89"]
[Black "miaou33"]
[Result "1-0"]
[WhiteElo "2567"]
[BlackElo "2298"]
[TimeControl "180+2"]
[EndTime "14:11:16 PST"]
[Termination "chito89 won by checkmate"]

1. e4 {[%clk 0:02:50.7]} 1... e6 {[%clk 0:03:00.8]} 2. d3 {[%clk 0:02:40]} 2...
d5 {[%clk 0:03:02.7]} 3. Nd2 {[%clk 0:02:40.6]} 3... Nf6 {[%clk 0:03:03.2]} 4.
Ngf3 {[%clk 0:02:38.5]} 4... g6 {[%clk 0:03:03.1]} 5. g3 {[%clk 0:02:39.2]} 5...
Bg7 {[%clk 0:03:03.1]} 6. Bg2 {[%clk 0:02:37]} 6... O-O {[%clk 0:03:03.8]} 7.
O-O {[%clk 0:02:36.6]} 7... c5 {[%clk 0:03:04.7]} 8. Re1 {[%clk 0:02:33.9]} 8...
Nc6 {[%clk 0:03:04.7]} 9. exd5 {[%clk 0:02:32.8]} 9... Nxd5 {[%clk 0:03:04.2]}
10. Ne4 {[%clk 0:02:33.1]} 10... b6 {[%clk 0:03:04]} 11. Bh6 {[%clk 0:02:27.9]}
11... Bxh6 {[%clk 0:02:59.6]} 12. c3 {[%clk 0:02:26.6]} 12... Bg7 {[%clk
0:02:57.1]} 13. a4 {[%clk 0:02:26.5]} 13... Bb7 {[%clk 0:02:57]} 14. Nfd2 {[%clk
0:02:24.1]} 14... Rc8 {[%clk 0:02:54.3]} 15. Nc4 {[%clk 0:02:25]} 15... Rc7
{[%clk 0:02:38]} 16. a5 {[%clk 0:02:21.6]} 16... b5 {[%clk 0:02:32.7]} 17. Ncd6
{[%clk 0:02:17.1]} 17... a6 {[%clk 0:02:31]} 18. Nxb7 {[%clk 0:02:17.4]} 18...
Rxb7 {[%clk 0:02:31.5]} 19. Nxc5 {[%clk 0:02:18.9]} 19... Ra7 {[%clk 0:02:22.1]}
20. Nb3 {[%clk 0:02:19.9]} 20... Qd6 {[%clk 0:02:18.3]} 21. d4 {[%clk
0:02:19.3]} 21... Rc8 {[%clk 0:02:14]} 22. Nc5 {[%clk 0:02:19.8]} 22... Nce7
{[%clk 0:02:09.2]} 23. Qd3 {[%clk 0:02:15]} 23... Rd8 {[%clk 0:01:45.6]} 24. Qe2
{[%clk 0:02:06.8]} 24... Nc7 {[%clk 0:01:44.7]} 25. h4 {[%clk 0:02:02.4]} 25...
Nc6 {[%clk 0:01:36.6]} 26. h5 {[%clk 0:01:58.7]} 26... e5 {[%clk 0:01:36.6]} 27.
Ne4 {[%clk 0:01:58.5]} 27... Qd7 {[%clk 0:01:22]} 28. h6 {[%clk 0:01:56.8]}
28... Bh8 {[%clk 0:01:22.7]} 29. Qf3 {[%clk 0:01:56.9]} 29... f5 {[%clk
0:01:00.2]} 30. Nc5 {[%clk 0:01:57.4]} 30... Qd5 {[%clk 0:01:01.5]} 31. Qxd5+
{[%clk 0:01:21.8]} 31... Nxd5 {[%clk 0:01:02.1]} 32. Ne6 {[%clk 0:01:23.1]}
32... Rd6 {[%clk 0:00:58.2]} 33. dxe5 {[%clk 0:01:24.6]} 33... Nxe5 {[%clk
0:00:42.5]} 34. Rad1 {[%clk 0:01:24.3]} 34... Rad7 {[%clk 0:00:22.6]} 35. Nc5
{[%clk 0:01:23.2]} 35... Rd8 {[%clk 0:00:20.3]} 36. Nb7 {[%clk 0:01:22.3]} 36...
Nf7 {[%clk 0:00:04.7]} 37. Nxd8 {[%clk 0:01:20.7]} 37... Rxd8 {[%clk 0:00:04.5]}
38. Rxd5 {[%clk 0:01:19.1]} 38... Rc8 {[%clk 0:00:03.1]} 39. Rd7 {[%clk
0:01:16.8]} 39... Bf6 {[%clk 0:00:03.1]} 40. Bd5 {[%clk 0:01:16.9]} 40... Rf8
{[%clk 0:00:03.8]} 41. Rxf7 {[%clk 0:01:17.3]} 41... Rxf7 {[%clk 0:00:04.7]} 42.
Re8# {[%clk 0:01:17.7]} 1-0

[Event "*** MasterClass Titled Tuesday Blitz"]
[Site "Chess.com"]
[Date "2017.11.07"]
[Round "1"]
[White "tango_argentino"]
[Black "SidArun"]
[Result "1-0"]
[WhiteElo "2476"]
[BlackElo "2084"]
[TimeControl "180+2"]
[EndTime "14:11:19 PST"]
[Termination "tango_argentino won by resignation"]

1. e4 {[%clk 0:03:01.9]} 1... c6 {[%clk 0:03:00.8]} 2. Nc3 {[%clk 0:03:00.8]}
2... d5 {[%clk 0:03:02.7]} 3. Qe2 {[%clk 0:03:02.4]} 3... d4 {[%clk 0:02:58.6]}
4. Nd1 {[%clk 0:03:03.5]} 4... e5 {[%clk 0:02:59.9]} 5. g3 {[%clk 0:03:04.6]}
5... Bd6 {[%clk 0:02:52]} 6. Bh3 {[%clk 0:03:05.2]} 6... Bxh3 {[%clk 0:02:49]}
7. Nxh3 {[%clk 0:03:07.1]} 7... Qd7 {[%clk 0:02:49.3]} 8. Ng5 {[%clk 0:03:08.4]}
8... h6 {[%clk 0:02:44.9]} 9. Nf3 {[%clk 0:03:09.2]} 9... Na6 {[%clk 0:02:42.5]}
10. d3 {[%clk 0:03:09.9]} 10... Nc7 {[%clk 0:02:42.3]} 11. O-O {[%clk 0:03:11]}
11... g5 {[%clk 0:02:41.3]} 12. Ne1 {[%clk 0:03:09.6]} 12... Ne7 {[%clk
0:02:39.9]} 13. f3 {[%clk 0:03:09.9]} 13... Ng6 {[%clk 0:02:40.8]} 14. Nf2
{[%clk 0:03:10.7]} 14... O-O-O {[%clk 0:02:38.4]} 15. c3 {[%clk 0:03:11.8]}
15... c5 {[%clk 0:02:33.3]} 16. cxd4 {[%clk 0:03:11.5]} 16... cxd4 {[%clk
0:02:34.6]} 17. Bd2 {[%clk 0:03:12.5]} 17... Kb8 {[%clk 0:02:35.9]} 18. Ng2
{[%clk 0:03:09.4]} 18... Ne6 {[%clk 0:02:23.6]} 19. Rfc1 {[%clk 0:03:07.9]}
19... Rc8 {[%clk 0:02:22.7]} 20. Qd1 {[%clk 0:03:07.1]} 20... Qb5 {[%clk
0:02:22.7]} 21. b3 {[%clk 0:03:04.2]} 21... Nc5 {[%clk 0:02:19.1]} 22. Rc4
{[%clk 0:03:05.1]} 22... Nd7 {[%clk 0:02:13.3]} 23. Rac1 {[%clk 0:03:05.5]}
23... Nb6 {[%clk 0:02:14.1]} 24. Rxc8+ {[%clk 0:03:04.3]} 24... Rxc8 {[%clk
0:02:14.6]} 25. Rxc8+ {[%clk 0:03:05.4]} 25... Nxc8 {[%clk 0:02:15.3]} 26. Qc2
{[%clk 0:03:05.8]} 26... Be7 {[%clk 0:01:38.3]} 27. Ng4 {[%clk 0:02:54.3]} 27...
h5 {[%clk 0:01:33.4]} 28. Nh6 {[%clk 0:02:55.5]} 28... Nd6 {[%clk 0:01:18]} 29.
a4 {[%clk 0:02:33.3]} 29... Qb6 {[%clk 0:01:12.4]} 30. Bc1 {[%clk 0:02:29.4]}
30... Bf8 {[%clk 0:01:05.2]} 31. Bxg5 {[%clk 0:02:26.3]} 31... f6 {[%clk
0:01:00.2]} 32. Bc1 {[%clk 0:02:18]} 32... Ne7 {[%clk 0:00:43.6]} 33. Nh4 {[%clk
0:02:13.3]} 33... Nc6 {[%clk 0:00:44.4]} 34. N6f5 {[%clk 0:02:09.9]} 34... Nb4
{[%clk 0:00:44.3]} 35. Qe2 {[%clk 0:02:07.9]} 35... Qa6 {[%clk 0:00:41.8]} 36.
Nxd6 {[%clk 0:02:04.7]} 36... Bxd6 {[%clk 0:00:41.6]} 37. Ba3 {[%clk 0:02:06]}
37... Bc5 {[%clk 0:00:24.3]} 38. Bxb4 {[%clk 0:02:06.3]} 38... Bxb4 {[%clk
0:00:25.5]} 39. g4 {[%clk 0:02:03.3]} 39... hxg4 {[%clk 0:00:25.7]} 40. fxg4
{[%clk 0:02:05.2]} 40... Qe6 {[%clk 0:00:25.1]} 41. Nf5 {[%clk 0:02:05.9]} 41...
Qxb3 {[%clk 0:00:24.8]} 42. h4 {[%clk 0:02:05.9]} 42... Qg8 {[%clk 0:00:24.1]}
43. h5 {[%clk 0:02:05.5]} 43... Ba3 {[%clk 0:00:20.2]} 44. Kg2 {[%clk
0:02:05.4]} 44... Bc1 {[%clk 0:00:21.3]} 45. Kf3 {[%clk 0:02:04.4]} 45... Bf4
{[%clk 0:00:22.2]} 46. Qc2 {[%clk 0:02:04.8]} 46... Qf8 {[%clk 0:00:15.8]} 47.
Qc4 {[%clk 0:02:03.5]} 47... a6 {[%clk 0:00:10.8]} 48. Qe6 {[%clk 0:01:57.8]}
48... Qb4 {[%clk 0:00:11.4]} 49. Qd6+ {[%clk 0:01:58.1]} 49... Qxd6 {[%clk
0:00:11.2]} 50. Nxd6 {[%clk 0:02:00]} 50... Kc7 {[%clk 0:00:12.7]} 51. Ne8+
{[%clk 0:02:00.4]} 51... Kc6 {[%clk 0:00:14]} 52. Nxf6 {[%clk 0:02:02]} 52... b5
{[%clk 0:00:15.9]} 53. axb5+ {[%clk 0:02:03.6]} 53... axb5 {[%clk 0:00:16.3]}
54. Nd5 {[%clk 0:02:04.8]} 54... Bg5 {[%clk 0:00:17.7]} 55. Ke2 {[%clk 0:02:01]}
55... Kc5 {[%clk 0:00:19.2]} 56. Nc7 {[%clk 0:02:02.4]} 56... b4 {[%clk
0:00:19.1]} 57. Ne6+ {[%clk 0:02:03.5]} 57... Kb5 {[%clk 0:00:20.6]} 58. Nxg5
{[%clk 0:02:05.1]} 58... Ka4 {[%clk 0:00:22.1]} 59. Kd1 {[%clk 0:02:06.5]} 59...
Ka3 {[%clk 0:00:23.5]} 60. Nf3 {[%clk 0:02:05.1]} 60... b3 {[%clk 0:00:23.6]}
61. Nxe5 {[%clk 0:02:06.4]} 61... Ka2 {[%clk 0:00:24.1]} 62. Nc4 {[%clk
0:02:08.3]} 1-0

[Event "*** MasterClass Titled Tuesday Blitz"]
[Site "Chess.com"]
[Date "2017.11.07"]
[Round "1"]
[White "nicegg"]
[Black "Tobi-Wan-Kenobi"]
[Result "0-1"]
[WhiteElo "1979"]
[BlackElo "2462"]
[TimeControl "180+2"]
[EndTime "14:11:25 PST"]
[Termination "Tobi-Wan-Kenobi won by resignation"]

1. e4 {[%clk 0:03:01.9]} 1... c5 {[%clk 0:03:00.3]} 2. Qh5 {[%clk 0:03:01.3]}
2... Nf6 {[%clk 0:02:52.9]} 3. Qxc5 {[%clk 0:03:01.2]} 3... Nxe4 {[%clk
0:02:52.2]} 4. Qe3 {[%clk 0:03:02.2]} 4... d5 {[%clk 0:02:51.9]} 5. Nc3 {[%clk
0:03:02.7]} 5... Nf6 {[%clk 0:02:50.9]} 6. d4 {[%clk 0:03:03.1]} 6... Nc6 {[%clk
0:02:51]} 7. Nf3 {[%clk 0:03:03.5]} 7... Bf5 {[%clk 0:02:48.8]} 8. Bd3 {[%clk
0:03:00.3]} 8... Bg6 {[%clk 0:02:49.5]} 9. a3 {[%clk 0:02:56]} 9... e6 {[%clk
0:02:50]} 10. O-O {[%clk 0:02:56.2]} 10... Bd6 {[%clk 0:02:50.5]} 11. Re1 {[%clk
0:02:55.6]} 11... O-O {[%clk 0:02:50.7]} 12. Ne5 {[%clk 0:02:50.5]} 12... Bxe5
{[%clk 0:02:34.8]} 13. dxe5 {[%clk 0:02:40.3]} 13... d4 {[%clk 0:02:35.5]} 14.
Qf3 {[%clk 0:02:19.4]} 14... Nxe5 {[%clk 0:02:09.7]} 15. Rxe5 {[%clk 0:02:12.5]}
15... dxc3 {[%clk 0:02:10.6]} 16. bxc3 {[%clk 0:02:01.5]} 16... Bxd3 {[%clk
0:01:56.4]} 17. Qxd3 {[%clk 0:01:55.1]} 17... Qxd3 {[%clk 0:01:52]} 18. cxd3
{[%clk 0:01:54.7]} 18... Rfd8 {[%clk 0:01:53.9]} 19. d4 {[%clk 0:01:50.3]} 19...
Rac8 {[%clk 0:01:53.1]} 20. Bd2 {[%clk 0:01:39.3]} 20... Rd5 {[%clk 0:01:49.5]}
21. Rc1 {[%clk 0:01:18.1]} 21... Rc4 {[%clk 0:01:46.8]} 22. Kf1 {[%clk
0:01:10.2]} 22... Rxe5 {[%clk 0:01:35.8]} 23. dxe5 {[%clk 0:01:08.8]} 23... Ng4
{[%clk 0:01:37.7]} 24. f4 {[%clk 0:00:58.7]} 24... Nxh2+ {[%clk 0:01:35.8]} 25.
Ke2 {[%clk 0:00:59.4]} 25... Ng4 {[%clk 0:01:37.7]} 26. Rb1 {[%clk 0:00:54.9]}
26... b6 {[%clk 0:01:37]} 27. Rb4 {[%clk 0:00:50.2]} 27... Rxb4 {[%clk
0:01:33.4]} 28. axb4 {[%clk 0:00:44.2]} 28... Kf8 {[%clk 0:01:35.3]} 29. Kd3
{[%clk 0:00:44.6]} 29... Ke8 {[%clk 0:01:31]} 30. Kc4 {[%clk 0:00:45.7]} 30...
a6 {[%clk 0:01:31.5]} 31. b5 {[%clk 0:00:40.2]} 31... a5 {[%clk 0:01:30]} 32. f5
{[%clk 0:00:34.3]} 32... Kd7 {[%clk 0:01:28.3]} 33. fxe6+ {[%clk 0:00:32.3]}
33... Kxe6 {[%clk 0:01:23.6]} 34. Kd4 {[%clk 0:00:32.8]} 34... Nxe5 {[%clk
0:01:23.7]} 35. Bf4 {[%clk 0:00:32.1]} 35... f6 {[%clk 0:01:19.6]} 36. c4 {[%clk
0:00:30.8]} 36... Kd6 {[%clk 0:01:17.3]} 37. g4 {[%clk 0:00:27.6]} 37... h6
{[%clk 0:01:15.1]} 38. Ke4 {[%clk 0:00:22.5]} 38... Kc5 {[%clk 0:01:08.3]} 39.
Kf5 {[%clk 0:00:21.8]} 39... a4 {[%clk 0:01:05.6]} 40. Be3+ {[%clk 0:00:18.2]}
40... Kxc4 {[%clk 0:01:01.9]} 41. Bxb6 {[%clk 0:00:18.7]} 41... a3 {[%clk
0:01:00.7]} 42. Ke4 {[%clk 0:00:17.3]} 42... Kxb5 {[%clk 0:00:50.4]} 43. Bd4
{[%clk 0:00:17.1]} 43... Nxg4 {[%clk 0:00:50.7]} 44. Kf5 {[%clk 0:00:17.6]}
44... h5 {[%clk 0:00:50.6]} 45. Kg6 {[%clk 0:00:16.7]} 45... h4 {[%clk 0:00:51]}
46. Kh5 {[%clk 0:00:17.6]} 46... h3 {[%clk 0:00:51.8]} 0-1

[Event "*** MasterClass Titled Tuesday Blitz"]
[Site "Chess.com"]
[Date "2017.11.07"]
[Round "1"]
[White "GMHess"]
[Black "StoreySniper"]
[Result "1-0"]
[WhiteElo "2561"]
[BlackElo "2291"]
[TimeControl "180+2"]
[EndTime "14:11:31 PST"]
[Termination "GMHess won by resignation"]

1. c4 {[%clk 0:03:01.9]} 1... g6 {[%clk 0:02:59.1]} 2. d4 {[%clk 0:03:01.9]}
2... Bg7 {[%clk 0:03:01]} 3. e4 {[%clk 0:03:03.5]} 3... d6 {[%clk 0:02:58.4]} 4.
Nc3 {[%clk 0:03:03.9]} 4... e5 {[%clk 0:02:52.1]} 5. dxe5 {[%clk 0:03:04.7]}
5... dxe5 {[%clk 0:02:52.5]} 6. Qxd8+ {[%clk 0:03:06.1]} 6... Kxd8 {[%clk
0:02:53.5]} 7. f4 {[%clk 0:03:07.2]} 7... Nd7 {[%clk 0:02:39]} 8. Nf3 {[%clk
0:03:07.5]} 8... f6 {[%clk 0:02:35.2]} 9. fxe5 {[%clk 0:03:04.9]} 9... Nxe5
{[%clk 0:02:34.4]} 10. Nxe5 {[%clk 0:03:04.3]} 10... fxe5 {[%clk 0:02:35.3]} 11.
Nd5 {[%clk 0:03:05.3]} 11... h6 {[%clk 0:02:28.9]} 12. Be3 {[%clk 0:03:01.8]}
12... c6 {[%clk 0:02:27.8]} 13. Nc3 {[%clk 0:03:01.6]} 13... Be6 {[%clk
0:02:12.2]} 14. Be2 {[%clk 0:02:55.2]} 14... Kc7 {[%clk 0:01:54.3]} 15. O-O
{[%clk 0:02:56]} 15... Nf6 {[%clk 0:01:48]} 16. Rac1 {[%clk 0:02:55.6]} 16...
Nd7 {[%clk 0:01:45.2]} 17. Nd5+ {[%clk 0:02:38.9]} 17... Kd8 {[%clk 0:01:36.7]}
18. Nb4 {[%clk 0:02:30.7]} 18... Bf8 {[%clk 0:01:30.8]} 19. Nd3 {[%clk
0:02:30.3]} 19... Be7 {[%clk 0:01:22.2]} 20. b4 {[%clk 0:01:43.2]} 20... b6
{[%clk 0:01:16.8]} 21. a4 {[%clk 0:01:42.2]} 21... Kc7 {[%clk 0:01:14.9]} 22. c5
{[%clk 0:01:39.7]} 22... Kb7 {[%clk 0:00:42.8]} 23. b5 {[%clk 0:01:29.6]} 23...
Nxc5 {[%clk 0:00:39.1]} 24. Bxc5 {[%clk 0:01:24]} 24... Bxc5+ {[%clk 0:00:34.5]}
25. Nxc5+ {[%clk 0:01:22.6]} 25... bxc5 {[%clk 0:00:35.5]} 26. Rxc5 {[%clk
0:01:23]} 26... Rhf8 {[%clk 0:00:19.1]} 27. Rxc6 {[%clk 0:01:19.7]} 27... Rxf1+
{[%clk 0:00:18.4]} 28. Kxf1 {[%clk 0:01:20.1]} 28... Re8 {[%clk 0:00:19.7]} 29.
a5 {[%clk 0:01:17.5]} 29... g5 {[%clk 0:00:16.2]} 30. Kf2 {[%clk 0:01:12.2]}
30... Re7 {[%clk 0:00:15.8]} 31. Bh5 {[%clk 0:01:03.9]} 31... Kb8 {[%clk
0:00:16.4]} 32. Be2 {[%clk 0:00:56.7]} 32... g4 {[%clk 0:00:15.2]} 33. Kg3
{[%clk 0:00:57.7]} 33... h5 {[%clk 0:00:11.1]} 34. Kh4 {[%clk 0:00:58.8]} 34...
Bf7 {[%clk 0:00:12.1]} 35. Bc4 {[%clk 0:00:52.3]} 35... Be8 {[%clk 0:00:13]} 36.
Rc5 {[%clk 0:00:52.1]} 36... Bg6 {[%clk 0:00:10.1]} 37. Bd5 {[%clk 0:00:49.3]}
37... Rc7 {[%clk 0:00:10.5]} 38. Rxc7 {[%clk 0:00:49.6]} 38... Kxc7 {[%clk
0:00:12.2]} 39. Kg5 {[%clk 0:00:50.8]} 39... Be8 {[%clk 0:00:12.4]} 40. Bc4
{[%clk 0:00:49.8]} 40... Kd6 {[%clk 0:00:13.4]} 41. b6 {[%clk 0:00:40.6]} 41...
axb6 {[%clk 0:00:14]} 42. axb6 {[%clk 0:00:42.5]} 42... Kc6 {[%clk 0:00:15]} 43.
Bb5+ {[%clk 0:00:43.6]} 1-0

[Event "*** MasterClass Titled Tuesday Blitz"]
[Site "Chess.com"]
[Date "2017.11.07"]
[Round "1"]
[White "Po6Don"]
[Black "johnathan113"]
[Result "0-1"]
[WhiteElo "2001"]
[BlackElo "2466"]
[TimeControl "180+2"]
[EndTime "14:11:37 PST"]
[Termination "johnathan113 won on time"]

1. e4 {[%clk 0:03:01.9]} 1... c5 {[%clk 0:03:00.5]} 2. c3 {[%clk 0:03:01.8]}
2... g6 {[%clk 0:02:58.7]} 3. d4 {[%clk 0:03:02.3]} 3... cxd4 {[%clk 0:03:00.6]}
4. cxd4 {[%clk 0:03:04.1]} 4... d5 {[%clk 0:03:01.6]} 5. e5 {[%clk 0:02:59.4]}
5... Nh6 {[%clk 0:03:02.2]} 6. Nf3 {[%clk 0:02:58.2]} 6... Bg7 {[%clk
0:03:03.4]} 7. Bb5+ {[%clk 0:02:49.1]} 7... Nc6 {[%clk 0:03:02.6]} 8. Nc3 {[%clk
0:02:47.8]} 8... O-O {[%clk 0:03:03.5]} 9. Bxc6 {[%clk 0:02:45.7]} 9... bxc6
{[%clk 0:03:04.2]} 10. O-O {[%clk 0:02:47.3]} 10... f6 {[%clk 0:03:05.3]} 11.
Re1 {[%clk 0:02:46]} 11... fxe5 {[%clk 0:02:52]} 12. Nxe5 {[%clk 0:02:44.1]}
12... Qb6 {[%clk 0:02:37.3]} 13. Na4 {[%clk 0:02:25.5]} 13... Qc7 {[%clk
0:02:35.7]} 14. Nc5 {[%clk 0:02:25.5]} 14... Nf5 {[%clk 0:02:34]} 15. h3 {[%clk
0:02:12.1]} 15... Nd6 {[%clk 0:02:19.4]} 16. Qa4 {[%clk 0:01:57.7]} 16... Bxe5
{[%clk 0:02:15.5]} 17. Rxe5 {[%clk 0:01:43.8]} 17... Nc4 {[%clk 0:02:07.2]} 18.
Re2 {[%clk 0:01:25.3]} 18... Qd6 {[%clk 0:02:06.1]} 19. b3 {[%clk 0:01:19.5]}
19... Nb6 {[%clk 0:02:00.6]} 20. Qb4 {[%clk 0:01:18.4]} 20... Bf5 {[%clk
0:01:43.6]} 21. Bg5 {[%clk 0:01:15.8]} 21... Rf7 {[%clk 0:01:36.6]} 22. Rae1
{[%clk 0:01:16.2]} 22... Re8 {[%clk 0:01:36.8]} 23. Qd2 {[%clk 0:01:02.6]} 23...
Nd7 {[%clk 0:01:34.8]} 24. Bf4 {[%clk 0:00:57.5]} 24... Qf6 {[%clk 0:01:33.2]}
25. Bg5 {[%clk 0:00:35.9]} 25... Qd6 {[%clk 0:01:31.3]} 26. Bf4 {[%clk
0:00:34.2]} 26... Qf6 {[%clk 0:01:32.3]} 27. Bg5 {[%clk 0:00:24.3]} 27... Qg7
{[%clk 0:01:33.3]} 28. Nxd7 {[%clk 0:00:20.4]} 28... Bxd7 {[%clk 0:01:35.2]} 29.
Rxe7 {[%clk 0:00:21.6]} 29... Rfxe7 {[%clk 0:01:34.9]} 30. Rxe7 {[%clk
0:00:05.2]} 30... Rxe7 {[%clk 0:01:36.8]} 31. Bxe7 {[%clk 0:00:04.5]} 31... Qxe7
{[%clk 0:01:38.7]} 32. Qf4 {[%clk 0:00:06]} 32... Bf5 {[%clk 0:01:36.3]} 33. Kh2
{[%clk 0:00:05.9]} 33... Kg7 {[%clk 0:01:31.5]} 34. g4 {[%clk 0:00:06.3]} 34...
Bb1 {[%clk 0:01:32.3]} 35. Kg3 {[%clk 0:00:05.7]} 35... Bxa2 {[%clk 0:01:31.9]}
36. b4 {[%clk 0:00:05.2]} 36... Bc4 {[%clk 0:01:32.7]} 37. h4 {[%clk 0:00:05.9]}
37... h6 {[%clk 0:01:33.7]} 38. h5 {[%clk 0:00:06]} 38... g5 {[%clk 0:01:34.5]}
39. Qf5 {[%clk 0:00:06.8]} 39... Qf7 {[%clk 0:01:34.3]} 40. Qe5+ {[%clk
0:00:07]} 40... Kh7 {[%clk 0:01:35.3]} 41. Qd6 {[%clk 0:00:03.3]} 41... Be2
{[%clk 0:01:31.3]} 42. f4 {[%clk 0:00:02.6]} 42... Qxf4+ {[%clk 0:01:29.8]} 43.
Qxf4 {[%clk 0:00:04.5]} 43... gxf4+ {[%clk 0:01:31.7]} 44. Kxf4 {[%clk
0:00:06.2]} 44... Kg7 {[%clk 0:01:33.1]} 45. g5 {[%clk 0:00:07.2]} 45... Bxh5
{[%clk 0:01:33.3]} 46. gxh6+ {[%clk 0:00:07.8]} 46... Kxh6 {[%clk 0:01:35.2]}
47. Ke5 {[%clk 0:00:09.5]} 47... Be2 {[%clk 0:01:36.3]} 48. Kd6 {[%clk
0:00:11.4]} 48... Bb5 {[%clk 0:01:38.1]} 49. Kc7 {[%clk 0:00:12.2]} 49... a6
{[%clk 0:01:40]} 50. Kb6 {[%clk 0:00:13.5]} 50... Kg5 {[%clk 0:01:41.9]} 51. Kc7
{[%clk 0:00:14.5]} 51... Kf4 {[%clk 0:01:43.8]} 52. Kd6 {[%clk 0:00:16.4]} 52...
Ke4 {[%clk 0:01:45.6]} 53. Ke6 {[%clk 0:00:17.8]} 53... Kxd4 {[%clk 0:01:47]}
0-1